bitfinex/quotes_BTCUSD_20250423
["timestamp","ask_amount","ask_price","bid_price","bid_amount"]
[1745394142934,0.09264,93692.0,93690.0,0.01589129]
[1745394143135,0.30610658,93692.0,93690.0,0.01589129]
[1745394143337,0.22414105,93691.0,93688.0,0.34]
[1745394143544,0.21914105,93691.0,93688.0,0.34]
[1745394143751,0.21914105,93691.0,93689.0,0.01588806]
[1745394143957,0.21914105,93691.0,93690.0,0.01588806]
[1745394145806,0.01067338,93691.0,93690.0,0.01588806]
[1745394146815,0.09264,93692.0,93690.0,0.01588806]
[1745394147327,0.09264,93692.0,93691.0,0.01588806]
[1745394147797,0.30610539,93692.0,93691.0,0.01588806]
[1745394148836,0.01067338,93691.0,93687.0,0.34]
[1745394149053,0.01067338,93691.0,93687.0,0.35067383]
[1745394149252,0.22414344,93690.0,93685.0,0.01067406]
[1745394149453,0.22414288,93691.0,93686.0,0.01067395]
[1745394149652,0.10331326,93692.0,93687.0,0.34]
[1745394149956,0.22414544,93690.0,93687.0,0.34]
[1745394150682,0.10331326,93692.0,93687.0,0.35067383]
[1745394151386,0.21347288,93689.0,93684.0,0.2241568]
[1745394151743,0.22414344,93690.0,93685.0,0.22415499]
[1745394152577,0.01067338,93691.0,93687.0,0.34]
[1745394152977,0.31678064,93692.0,93687.0,0.56415045]
[1745394153183,0.22414064,93692.0,93687.0,0.56415045]
[1745394153998,0.32377729,93693.0,93688.0,0.01067372]
[1745394154207,0.01067326,93692.0,93688.0,0.35067372]
[1745394154687,0.01067326,93692.0,93688.0,0.34]
[1745394154979,0.01067326,93692.0,93689.0,0.01588465]
[1745394155188,0.11031315,93693.0,93689.0,0.01588465]
[1745394155543,0.11031315,93693.0,93690.0,0.01588465]
[1745394155898,0.22413896,93692.0,93687.0,0.35067383]
[1745394156361,0.01067338,93691.0,93687.0,0.35067383]
[1745394156758,0.22413867,93692.0,93687.0,0.35067383]
[1745394157063,0.01067326,93692.0,93687.0,0.01067383]
[1745394157276,0.01067326,93692.0,93688.0,0.01067372]
[1745394157631,0.32377733,93693.0,93688.0,0.22414782]
[1745394158491,0.31310418,93693.0,93688.0,0.22414782]
[1745394158660,0.09964,93693.0,93690.0,0.34]
[1745394158863,0.32377717,93693.0,93690.0,0.34]
[1745394159085,0.21346602,93692.0,93690.0,0.34]
[1745394159404,0.09964,93693.0,93690.0,0.34]
[1745394159963,0.32377846,93693.0,93689.0,0.34]
[1745394160177,0.21346995,93690.0,93689.0,0.34]
[1745394160987,0.01067349,93690.0,93683.0,0.34]
[1745394161214,0.01067372,93688.0,93683.0,0.55348583]
[1745394161385,0.21348134,93685.0,93673.0,0.02178699]
[1745394161620,0.22416977,93679.0,93678.0,0.46902751]
[1745394163466,0.22416977,93679.0,93678.0,0.34]
[1745394165257,0.26200641,93674.0,93673.0,0.02178699]
[1745394166158,0.25500641,93674.0,93673.0,0.02178699]
[1745394168438,0.21353377,93662.0,93660.0,0.39338282]
[1745394168633,0.21353377,93662.0,93655.0,0.01067748]
[1745394168634,0.21354061,93659.0,93655.0,0.01067748]
[1745394169421,0.21353953,93660.0,93655.0,0.01067748]
[1745394169806,0.21354061,93659.0,93652.0,0.19669141]
[1745394170042,0.21354061,93659.0,93658.0,0.02002131]
[1745394171431,0.26114061,93659.0,93658.0,0.02002131]
[1745394173985,0.21354061,93659.0,93658.0,0.02002131]
[1745394174367,0.20654061,93659.0,93658.0,0.02002131]
[1745394180180,0.21353953,93660.0,93658.0,0.02002131]
[1745394180388,0.22422384,93657.0,93652.0,0.20736923]
[1745394180588,0.22422384,93657.0,93653.0,6.966e-05]
[1745394180993,0.01067714,93658.0,93653.0,0.01916991]
[1745394181225,0.01067725,93657.0,93653.0,6.966e-05]
[1745394181806,0.01067714,93658.0,93653.0,0.01074737]
[1745394182131,0.01067725,93657.0,93653.0,0.01074737]
[1745394182261,0.22422035,93658.0,93653.0,0.35074737]
[1745394182466,0.01067737,93656.0,93653.0,0.35960935]
[1745394183506,0.01067737,93656.0,93653.0,0.01960935]
[1745394183911,0.01067703,93659.0,93654.0,0.34]
[1745394184189,0.22421781,93659.0,93654.0,0.34]
[1745394184395,0.050425,93728.0,93654.0,0.34]
[1745394184396,0.01067554,93672.0,93665.0,0.01067634]
[1745394184654,0.01067589,93669.0,93666.0,0.34]
[1745394185179,0.21352009,93668.0,93667.0,0.01560663]
[1745394189786,0.20652009,93668.0,93667.0,0.01560663]
[1745394190603,0.21351783,93669.0,93667.0,0.01560663]
[1745394190802,0.21352009,93668.0,93667.0,0.01560663]
[1745394191006,0.22419935,93667.0,93663.0,0.34]
[1745394191497,0.22419609,93668.0,93663.0,0.35067657]
[1745394191631,0.0996,93671.0,93670.0,0.21351553]
[1745394191849,0.31311325,93671.0,93670.0,0.34]
[1745394192259,0.31311325,93671.0,93670.0,0.35563316]
[1745394195685,0.35911325,93671.0,93670.0,0.35563316]
[1745394197469,0.35211325,93671.0,93670.0,0.35563316]
[1745394198273,0.35211325,93671.0,93670.0,0.01563316]
[1745394198859,0.35960259,93671.0,93670.0,0.01563316]
[1745394203588,0.35211325,93671.0,93670.0,0.01563316]
[1745394205174,0.34511325,93671.0,93670.0,0.01563316]
[1745394210128,0.29911325,93671.0,93670.0,0.01563316]
[1745394212939,0.29211325,93671.0,93670.0,0.01563316]
[1745394220605,0.28511325,93671.0,93670.0,0.01563316]
[1745394225654,0.21351325,93671.0,93670.0,0.01563316]
[1745394225954,0.31287325,93671.0,93670.0,0.01563316]
[1745394227647,0.31287325,93671.0,93661.0,0.34]
[1745394227648,0.21353377,93662.0,93661.0,0.34]
[1745394227785,0.22421644,93660.0,93656.0,0.56422441]
[1745394228220,0.21353746,93661.0,93657.0,0.01565688]
[1745394228799,0.21353746,93661.0,93658.0,0.01565688]
[1745394229226,0.22421426,93661.0,93659.0,0.01565688]
[1745394229440,0.32357082,93662.0,93660.0,0.01565688]
[1745394229649,0.21353605,93661.0,93660.0,0.01565688]
[1745394229853,0.21353605,93661.0,93659.0,0.34]
[1745394230314,0.22421524,93660.0,93656.0,0.35067737]
[1745394230763,0.22421524,93660.0,93657.0,0.0156584]
[1745394230971,0.21354103,93659.0,93657.0,0.0156584]
[1745394231158,0.21354103,93659.0,93658.0,0.0156584]
[1745394231368,0.22421524,93660.0,93658.0,0.0156584]
[1745394231728,0.22421524,93660.0,93659.0,0.0156584]
[1745394236093,0.21721524,93660.0,93659.0,0.0156584]
[1745394238881,0.01067691,93660.0,93659.0,0.0156584]
[1745394240229,0.22421524,93660.0,93659.0,0.0156584]
[1745394242231,0.42441829,93660.0,93659.0,0.0156584]
[1745394242804,0.42541829,93660.0,93659.0,0.0156584]
[1745394243640,0.41474138,93660.0,93659.0,0.0156584]
[1745394244119,0.42541829,93660.0,93659.0,0.0156584]
[1745394244882,0.4332374,93660.0,93659.0,0.0156584]
[1745394246612,0.42541829,93660.0,93659.0,0.0156584]
[1745394247046,0.33351829,93660.0,93659.0,0.0156584]
[1745394248535,0.22521524,93660.0,93659.0,0.0156584]
[1745394248756,0.11103691,93660.0,93659.0,0.0156584]
[1745394249912,0.32457524,93660.0,93659.0,0.0156584]
[1745394250676,0.37107524,93660.0,93659.0,0.0156584]
[1745394251312,0.47237829,93660.0,93659.0,0.0166584]
[1745394255592,0.47237829,93660.0,93659.0,0.0166584]
[1745394255973,0.52107829,93660.0,93659.0,0.0166584]
[1745394256615,0.53561914,93660.0,93659.0,0.001]
[1745394256830,0.54310343,93660.0,93659.0,0.001]
[1745394259126,0.53610343,93660.0,93659.0,0.001]
[1745394259659,0.54678034,93660.0,93659.0,0.001]
[1745394261207,0.95878034,93660.0,93659.0,0.001]
[1745394261403,0.94423949,93660.0,93659.0,0.001]
[1745394263164,0.84720258,93660.0,93659.0,0.001]
[1745394263371,0.94648258,93660.0,93659.0,0.001]
[1745394266884,0.93948258,93660.0,93659.0,0.001]
[1745394270961,0.21355201,93654.0,93653.0,6.966e-05]
[1745394271150,0.32185506,93654.0,93653.0,6.966e-05]
[1745394271342,0.32185506,93654.0,93653.0,0.00106966]
[1745394271795,0.32185506,93654.0,93653.0,0.01645787]
[1745394273218,0.32185506,93654.0,93653.0,0.01646051]
[1745394273844,0.42113506,93654.0,93653.0,0.01646051]
[1745394274602,0.41413506,93654.0,93653.0,0.01646051]
[1745394277161,0.41413506,93654.0,93653.0,0.00106966]
[1745394277699,0.41413506,93654.0,93653.0,0.01645982]
[1745394278997,0.42161935,93654.0,93653.0,0.01645982]
[1745394282261,0.41461935,93654.0,93653.0,0.01645982]
[1745394284652,0.46261935,93654.0,93653.0,0.01645982]
[1745394289425,0.36333935,93654.0,93653.0,0.01645982]
[1745394289593,0.46249935,93654.0,93653.0,0.01645982]
[1745394289999,0.45549935,93654.0,93653.0,0.01645982]
[1745394290578,0.40749935,93654.0,93653.0,0.01645982]
[1745394296134,0.30833935,93654.0,93653.0,0.01645982]
[1745394296371,0.40749935,93654.0,93653.0,0.01645982]
[1745394297686,0.40049935,93654.0,93653.0,0.01645982]
[1745394304504,0.39986811,93654.0,93653.0,0.01645982]
[1745394305462,0.39286811,93654.0,93653.0,0.01645982]
[1745394307874,0.21358165,93641.0,93640.0,0.12911338]
[1745394308083,0.21358165,93641.0,93632.0,0.15082657]
[1745394308084,0.22427226,93637.0,93633.0,0.34]
[1745394308264,0.2242732,93636.0,93633.0,0.34]
[1745394308908,0.21359637,93635.0,93633.0,0.3617123]
[1745394309327,0.21359637,93635.0,93633.0,0.0217123]
[1745394309738,0.22427613,93635.0,93631.0,0.35153042]
[1745394310088,0.22427613,93635.0,93631.0,0.56513482]
[1745394310652,0.22427613,93635.0,93631.0,0.58680464]
[1745394311235,0.22427804,93634.0,93631.0,0.36252002]
[1745394311433,0.01067988,93634.0,93631.0,0.36252002]
[1745394311676,0.22427868,93634.0,93631.0,0.36252002]
[1745394311884,0.22427613,93635.0,93631.0,0.37320024]
[1745394312843,0.22427613,93635.0,93631.0,0.58680435]
[1745394313074,0.21727613,93635.0,93631.0,0.58680435]
[1745394313268,0.21727613,93635.0,93631.0,0.36252002]
[1745394314698,0.21727613,93635.0,93631.0,0.16438447]
[1745394315397,0.22427692,93636.0,93632.0,0.22428061]
[1745394315598,0.22427569,93635.0,93631.0,0.23527379]
[1745394316217,0.22427784,93634.0,93631.0,0.02166982]
[1745394316419,0.22427784,93634.0,93630.0,0.01068033]
[1745394317197,0.22427569,93635.0,93631.0,0.01068022]
[1745394318455,0.2242788,93634.0,93631.0,0.02132568]
[1745394318638,0.2242788,93634.0,93630.0,0.01068033]
[1745394318793,0.2242788,93634.0,93630.0,0.22428632]
[1745394319210,0.22427963,93635.0,93630.0,0.22428632]
[1745394319415,0.01067965,93636.0,93631.0,0.01068022]
[1745394319812,0.22427348,93636.0,93631.0,0.22428285]
[1745394320017,0.22427348,93636.0,93632.0,0.23922193]
[1745394320299,0.22427348,93636.0,93632.0,0.0149404]
[1745394320465,0.01067976,93635.0,93633.0,0.0149404]
[1745394320843,0.2242748,93636.0,93633.0,0.0149404]
[1745394321196,0.2242748,93636.0,93634.0,0.0149404]
[1745394321571,0.21359534,93635.0,93634.0,0.0149404]
[1745394321779,0.2242751,93635.0,93632.0,0.34]
[1745394321983,0.2242751,93635.0,93633.0,0.0149382]
[1745394322427,0.2242751,93635.0,93634.0,0.0149382]
[1745394328517,0.21359534,93635.0,93634.0,0.0149382]
[1745394328765,0.2242751,93635.0,93634.0,0.0149382]
[1745394328944,0.2102751,93635.0,93634.0,0.0149382]
[1745394329778,0.2052751,93635.0,93634.0,0.0229382]
[1745394330360,0.2062751,93635.0,93634.0,0.0289382]
[1745394336131,0.1982751,93635.0,93634.0,0.0289382]
[1745394336265,0.1912751,93635.0,93634.0,0.0289382]
[1745394343959,0.1842751,93635.0,93634.0,0.0289382]
[1745394345941,0.2831951,93635.0,93634.0,0.0289382]
[1745394352230,0.2761951,93635.0,93634.0,0.0289382]
[1745394354595,0.2761951,93635.0,93634.0,0.014]
[1745394356322,0.2761951,93635.0,93634.0,0.02845309]
[1745394358438,0.002,93635.0,93634.0,0.58205071]
[1745394358672,0.002,93635.0,93634.0,0.62975071]
[1745394359891,0.09392,93644.0,93643.0,0.55357709]
[1745394360707,0.09392,93644.0,93643.0,0.35445309]
[1745394361440,0.35639481,93644.0,93643.0,0.35445309]
[1745394362144,0.35639481,93644.0,93643.0,0.35545309]
[1745394363311,0.35639481,93644.0,93643.0,0.35845309]
[1745394364189,0.46469786,93644.0,93643.0,0.01845309]
[1745394365822,0.46469786,93644.0,93643.0,0.004]
[1745394366028,0.35639481,93644.0,93643.0,0.004]
[1745394366238,0.30749481,93644.0,93643.0,0.004]
[1745394367676,0.30049481,93644.0,93643.0,0.004]
[1745394371611,0.21357481,93644.0,93643.0,0.004]
[1745394375316,0.20657481,93644.0,93643.0,0.004]
[1745394378650,0.21357413,93645.0,93643.0,0.004]
[1745394380025,0.21357413,93645.0,93643.0,0.001]
[1745394380265,0.22425275,93645.0,93642.0,0.55357907]
[1745394380466,0.22425275,93645.0,93643.0,0.003]
[1745394381206,0.22425275,93645.0,93643.0,0.002]
[1745394381509,0.22525275,93645.0,93643.0,0.002]
[1745394381987,0.22425275,93645.0,93642.0,0.55357907]
[1745394382167,0.22425275,93645.0,93642.0,0.342]
[1745394382340,0.21357511,93644.0,93642.0,0.342]
[1745394382547,0.22425385,93644.0,93640.0,0.35067919]
[1745394382752,0.22425385,93644.0,93643.0,0.002]
[1745394382968,0.22425385,93644.0,93640.0,0.55358315]
[1745394383130,0.21725385,93644.0,93640.0,0.55358315]
[1745394383337,0.21725385,93644.0,93643.0,0.001]
[1745394383720,0.21725385,93644.0,93641.0,0.01067908]
[1745394383926,0.21725385,93644.0,93643.0,0.003]
[1745394385199,0.21725385,93644.0,93643.0,0.002]
[1745394385610,0.21725385,93644.0,93640.0,0.21358372]
[1745394385819,0.21725385,93644.0,93641.0,0.343]
[1745394386141,0.21725385,93644.0,93641.0,0.34]
[1745394386357,0.21725385,93644.0,93643.0,0.002]
[1745394386566,0.01167874,93644.0,93643.0,0.002]
[1745394386796,0.22525412,93644.0,93641.0,0.56626027]
[1745394386995,0.22525412,93644.0,93641.0,0.01567908]
[1745394387209,0.22425412,93644.0,93641.0,0.01067908]
[1745394387538,0.22425412,93644.0,93643.0,0.003]
[1745394388019,0.22425412,93644.0,93643.0,0.002]
[1745394388229,0.22525412,93644.0,93643.0,0.002]
[1745394389336,0.21357863,93643.0,93641.0,0.002]
[1745394389555,0.22425748,93643.0,93641.0,0.003]
[1745394390034,0.22325748,93643.0,93639.0,0.01067931]
[1745394390192,0.22125748,93643.0,93639.0,0.01067931]
[1745394390385,0.22425626,93643.0,93639.0,0.01067931]
[1745394390623,0.22525626,93643.0,93641.0,0.005]
[1745394390826,0.21457741,93643.0,93641.0,0.005]
[1745394391024,0.21457741,93643.0,93641.0,0.002]
[1745394391226,0.21357741,93643.0,93639.0,0.35367931]
[1745394391573,0.21358151,93642.0,93639.0,0.346]
[1745394391933,0.001,93643.0,93639.0,0.57026479]
[1745394392135,0.22525655,93643.0,93639.0,0.57026479]
[1745394392533,0.22525655,93643.0,93639.0,0.006]
[1745394392738,0.22425655,93643.0,93639.0,0.003]
[1745394392917,0.22525655,93643.0,93641.0,0.002]
[1745394393347,0.01167885,93643.0,93641.0,0.004]
[1745394393538,0.01067885,93643.0,93639.0,0.35067931]
[1745394393735,0.01167885,93643.0,93639.0,0.35467931]
[1745394393940,0.001,93643.0,93640.0,0.01067919]
[1745394394497,0.22425434,93644.0,93641.0,0.001]
[1745394394696,0.001,93643.0,93641.0,0.002]
[1745394395132,0.001,93643.0,93642.0,0.34]
[1745394395903,0.01067862,93645.0,93642.0,0.34]
[1745394396109,0.001,93643.0,93641.0,0.35067908]
[1745394396303,0.001,93643.0,93641.0,0.56426048]
[1745394396510,0.001,93643.0,93642.0,0.002]
[1745394396738,0.22425445,93644.0,93641.0,0.34]
[1745394396887,0.001,93643.0,93642.0,0.001]
[1745394397102,0.001,93643.0,93642.0,0.003]
[1745394397310,0.001,93643.0,93642.0,0.001]
[1745394397543,0.001,93643.0,93642.0,0.003]
[1745394398114,0.001,93643.0,93642.0,0.002]
[1745394398323,0.2242515,93645.0,93642.0,0.002]
[1745394398542,0.21357288,93645.0,93642.0,0.002]
[1745394399504,0.001,93644.0,93642.0,0.22425786]
[1745394399738,0.001,93644.0,93642.0,0.22625786]
[1745394399977,0.22424884,93646.0,93642.0,0.22625786]
[1745394400196,0.22424884,93646.0,93642.0,0.01267896]
[1745394400519,0.22525172,93645.0,93642.0,0.01367896]
[1745394400721,0.22425172,93645.0,93642.0,0.01267896]
[1745394400948,0.22425172,93645.0,93642.0,0.22425816]
[1745394400949,0.01067862,93645.0,93642.0,0.22425816]
[1745394401157,0.01167851,93646.0,93643.0,0.01067885]
[1745394401360,0.22524876,93646.0,93643.0,0.01067885]
[1745394402010,0.22524876,93646.0,93644.0,0.34]
[1745394402011,0.001,93646.0,93644.0,0.34]
[1745394402230,0.001,93646.0,93645.0,0.55357253]
[1745394402447,0.001,93646.0,93645.0,0.60097253]
[1745394402658,0.001,93646.0,93645.0,1.17087557]
[1745394403300,0.0008506,93673.0,93672.0,0.55351097]
[1745394403507,0.00091532,93673.0,93672.0,0.55351097]
[1745394404108,0.00091532,93673.0,93672.0,0.66181402]
[1745394404314,0.00191532,93673.0,93672.0,0.66581402]
[1745394404523,0.00291532,93673.0,93672.0,0.66581402]
[1745394404758,0.00191532,93673.0,93672.0,0.66581402]
[1745394404971,0.00291532,93673.0,93672.0,0.66981402]
[1745394406189,0.00091532,93673.0,93672.0,0.66981402]
[1745394414284,0.00628984,93688.0,93685.0,0.34]
[1745394414503,0.21982914,93688.0,93685.0,0.34]
[1745394414727,0.21347687,93687.0,93685.0,0.34]
[1745394416855,0.21347687,93687.0,93685.0,0.35722197]
[1745394417183,0.21547688,93687.0,93685.0,0.01722197]
[1745394417415,0.21647688,93687.0,93685.0,0.01722197]
[1745394417625,0.21647688,93687.0,93684.0,0.34]
[1745394418213,0.21647688,93687.0,93684.0,0.55348346]
[1745394418455,0.21647688,93687.0,93684.0,0.58123324]
[1745394418878,0.002,93687.0,93684.0,0.58123324]
[1745394419087,0.002,93687.0,93686.0,0.55347906]
[1745394419300,6.471e-05,93688.0,93687.0,0.55347678]
[1745394420564,6.471e-05,93688.0,93687.0,0.66177983]
[1745394420775,6.471e-05,93688.0,93687.0,0.75667983]
[1745394420990,1e-08,93688.0,93687.0,0.75667983]
[1745394421201,0.0004252,93692.0,93691.0,0.56800852]
[1745394421202,0.00038521,93692.0,93691.0,0.56800852]
[1745394421400,0.00038521,93692.0,93691.0,1.08981156]
[1745394421616,0.00023597,93712.0,93711.0,0.55342211]
[1745394423483,0.00223597,93712.0,93711.0,0.55342211]
[1745394427042,0.00223597,93712.0,93711.0,0.56783723]
[1745394432275,0.00223597,93712.0,93711.0,0.55342211]
[1745394432699,0.00223597,93712.0,93711.0,0.56783723]
[1745394434163,0.00852222,93712.0,93711.0,0.56783723]
[1745394434492,0.00223597,93712.0,93711.0,0.56783723]
[1745394437866,0.00223597,93712.0,93711.0,0.55342211]
[1745394438276,0.00848846,93712.0,93711.0,0.55342211]
[1745394438726,0.00848846,93712.0,93711.0,0.56783714]
[1745394439539,0.00223597,93712.0,93711.0,0.56783714]
[1745394442808,1e-08,93712.0,93711.0,1.15238103]
[1745394443022,0.0024251,93729.0,93727.0,0.55338568]
[1745394443455,0.00089142,93728.0,93727.0,0.55338568]
[1745394443666,0.21427482,93728.0,93727.0,0.34]
[1745394443877,0.21340389,93719.0,93718.0,0.12891304]
[1745394444084,0.22407799,93718.0,93715.0,0.01067065]
[1745394444292,0.0106703,93718.0,93716.0,0.01438522]
[1745394444504,0.21340398,93719.0,93717.0,0.34]
[1745394444703,0.01067008,93720.0,93717.0,0.34]
[1745394444909,0.00867008,93720.0,93718.0,0.01438522]
[1745394445128,0.00867008,93720.0,93719.0,0.01438522]
[1745394445563,0.2220717,93720.0,93719.0,0.01438522]
[1745394446053,0.00867008,93720.0,93719.0,0.01438522]
[1745394446258,0.01482457,93720.0,93719.0,0.01438522]
[1745394446478,0.22822619,93720.0,93719.0,0.01738522]
[1745394447088,0.22822619,93720.0,93717.0,0.01067042]
[1745394447304,0.001,93719.0,93717.0,0.01467042]
[1745394447504,0.00621228,93718.0,93717.0,0.01467042]
[1745394447729,0.00621228,93718.0,93717.0,0.01067042]
[1745394447983,0.22128398,93720.0,93717.0,0.01067042]
[1745394448186,0.22128398,93720.0,93719.0,0.003]
[1745394448615,0.21340424,93719.0,93717.0,0.002]
[1745394448820,0.22407443,93719.0,93716.0,0.01067053]
[1745394449027,0.001,93718.0,93717.0,0.003]
[1745394449223,0.001,93718.0,93717.0,0.005]
[1745394449904,0.001,93718.0,93717.0,0.007]
[1745394450118,0.001,93718.0,93717.0,0.005]
[1745394450315,0.001,93718.0,93717.0,0.007]
[1745394450936,0.01067019,93719.0,93717.0,0.007]
[1745394450937,0.22128398,93720.0,93717.0,0.004]
[1745394451146,0.22128398,93720.0,93719.0,0.003]
[1745394451569,0.0024251,93729.0,93726.0,0.21338796]
[1745394451778,0.05816928,93727.0,93723.0,0.22406339]
[1745394451999,0.27155554,93727.0,93723.0,0.22406339]
[1745394452212,0.22405783,93726.0,93723.0,0.01066973]
[1745394452828,0.22305783,93726.0,93723.0,0.01066973]
[1745394453033,0.01066939,93726.0,93721.0,0.35066996]
[1745394453237,0.01066939,93726.0,93722.0,0.22406587]
[1745394453462,0.22505768,93726.0,93722.0,0.22406587]
[1745394454268,0.22505768,93726.0,93723.0,0.002]
[1745394454593,0.22505803,93726.0,93723.0,0.002]
[1745394454798,0.22405974,93725.0,93721.0,0.22406909]
[1745394455014,0.22405974,93725.0,93722.0,0.002]
[1745394455443,0.22405974,93725.0,93721.0,0.22406909]
[1745394455667,0.01166939,93726.0,93722.0,0.22406621]
[1745394455888,0.01166939,93726.0,93723.0,0.22606366]
[1745394456110,0.001,93726.0,93723.0,0.22606366]
[1745394456322,0.001,93725.0,93724.0,0.21339229]
[1745394456540,0.01066928,93727.0,93724.0,0.21339229]
[1745394456751,0.01066928,93727.0,93723.0,0.22606366]
[1745394456752,0.001,93726.0,93723.0,0.22606366]
[1745394457477,0.01166939,93726.0,93723.0,0.002]
[1745394457682,0.001,93726.0,93723.0,0.21339479]
[1745394457894,0.22405528,93727.0,93723.0,0.21339479]
[1745394458491,0.01066939,93726.0,93723.0,0.01066973]
[1745394458719,0.01066939,93726.0,93723.0,0.01166973]
[1745394459107,0.01066939,93726.0,93723.0,0.22406371]
[1745394459286,0.22405528,93727.0,93724.0,0.01438737]
[1745394459679,0.22405528,93727.0,93725.0,0.01438737]
[1745394460207,0.22405528,93727.0,93726.0,0.01438737]
[1745394461257,0.01066928,93727.0,93726.0,0.01438737]
[1745394461474,0.001,93727.0,93726.0,0.56777533]
[1745394461699,0.001,93727.0,93726.0,0.56877533]
[1745394461905,0.00089142,93728.0,93727.0,0.21338568]
[1745394462501,0.00089142,93728.0,93727.0,0.22777305]
[1745394463325,0.01066825,93736.0,93733.0,0.21337183]
[1745394463531,0.00013981,93736.0,93734.0,0.55336918]
[1745394463670,0.00013981,93736.0,93735.0,0.55336747]
[1745394463906,0.00013981,93736.0,93735.0,0.56775484]
[1745394464726,0.00513981,93736.0,93735.0,0.56775484]
[1745394465107,0.00513981,93736.0,93735.0,0.35438737]
[1745394465290,0.00613981,93736.0,93735.0,0.35438737]
[1745394465477,0.00813981,93736.0,93735.0,0.35438737]
[1745394465680,0.00813981,93736.0,93735.0,0.37033998]
[1745394465913,0.221505,93736.0,93735.0,0.37033998]
[1745394470109,0.42610805,93736.0,93735.0,0.01438737]
[1745394471162,0.317805,93736.0,93735.0,0.01438737]
[1745394471405,0.416165,93736.0,93735.0,0.01438737]
[1745394471621,0.52446805,93736.0,93735.0,0.01438737]
[1745394472171,0.51746805,93736.0,93735.0,0.01438737]
[1745394480034,0.51046805,93736.0,93735.0,0.01438737]
[1745394481122,0.21345172,93698.0,93685.0,0.41349999]
[1745394481347,0.21345172,93698.0,93685.0,0.42417405]
[1745394481570,0.21345172,93698.0,93685.0,0.41349999]
[1745394482024,0.21345172,93698.0,93680.0,0.19647308]
[1745394482237,0.32175477,93698.0,93679.0,0.0008496]
[1745394482446,0.32175477,93698.0,93697.0,0.00131582]
[1745394482668,0.36995477,93698.0,93697.0,0.00131582]
[1745394482872,0.37095477,93698.0,93697.0,0.00531582]
[1745394483270,0.36105172,93698.0,93697.0,0.00531582]
[1745394483515,0.31185172,93698.0,93697.0,0.00131582]
[1745394483723,0.31485172,93698.0,93697.0,0.00131582]
[1745394483870,0.31485172,93698.0,93697.0,0.00431582]
[1745394484505,0.47135477,93698.0,93697.0,0.00431582]
[1745394484661,0.47135477,93698.0,93697.0,0.00131582]
[1745394484865,0.21349274,93680.0,93673.0,0.0008496]
[1745394485075,0.21349274,93680.0,93679.0,0.00098941]
[1745394485277,0.2134802,93686.0,93682.0,0.0106744]
[1745394485522,0.2241581,93684.0,93680.0,0.35067463]
[1745394486122,0.0984,93685.0,93682.0,0.0106744]
[1745394486489,0.01067326,93692.0,93687.0,0.01067383]
[1745394486690,0.21346192,93694.0,93690.0,0.01067349]
[1745394486691,0.32253496,93694.0,93690.0,0.01067349]
[1745394487269,0.22413707,93693.0,93690.0,0.01067349]
[1745394487682,0.21713707,93693.0,93690.0,0.01067349]
[1745394487946,0.213466,93692.0,93689.0,0.01067361]
[1745394488151,0.21713707,93693.0,93689.0,0.22414411]
[1745394488379,0.21346794,93691.0,93688.0,0.21347427]
[1745394488554,0.22414132,93691.0,93688.0,0.21347427]
[1745394488761,0.22414132,93691.0,93687.0,0.01067383]
[1745394488762,0.21347451,93688.0,93682.0,0.19647308]
[1745394488983,0.21348362,93684.0,93683.0,0.34]
[1745394490014,0.21348362,93684.0,93681.0,0.34]
[1745394490234,0.21348362,93684.0,93683.0,0.002]
[1745394490388,0.21248362,93684.0,93683.0,0.002]
[1745394490979,0.21248362,93684.0,93683.0,0.005]
[1745394491601,0.21248362,93684.0,93683.0,0.003]
[1745394491999,0.01067406,93685.0,93683.0,0.343]
[1745394492199,0.0984,93689.0,93688.0,0.55347451]
[1745394492433,0.01067338,93691.0,93689.0,0.34]
[1745394492633,0.21347005,93690.0,93687.0,0.34]
[1745394492841,0.22414354,93690.0,93687.0,0.35067383]
[1745394493011,0.22414354,93690.0,93688.0,0.01320363]
[1745394493418,0.01167338,93691.0,93688.0,0.01320363]
[1745394493621,0.01167338,93691.0,93689.0,0.01320363]
[1745394493883,0.001,93691.0,93690.0,0.59926995]
[1745394494133,0.001,93691.0,93690.0,1.21787752]
[1745394494308,0.0984,93722.0,93718.0,0.34]
[1745394494506,0.0984,93722.0,93721.0,0.55339934]
[1745394494943,0.0984,93722.0,93721.0,0.56660297]
[1745394495092,0.0984,93722.0,93721.0,0.56618676]
[1745394495290,0.0914,93722.0,93721.0,0.56618676]
[1745394495739,0.09186575,93722.0,93721.0,0.56618676]
[1745394496597,0.09186575,93722.0,93721.0,0.56718676]
[1745394497026,0.09186575,93722.0,93721.0,0.56818676]
[1745394501926,0.00046575,93722.0,93721.0,0.56818676]
[1745394503173,0.09178575,93730.0,93729.0,0.21338113]
[1745394503393,0.09178575,93730.0,93729.0,0.22658476]
[1745394504397,0.09478575,93730.0,93729.0,0.24304542]
[1745394507184,0.09478575,93730.0,93729.0,0.58304542]
[1745394507398,0.003,93730.0,93729.0,0.58304542]
[1745394508239,0.001,93736.0,93735.0,0.55336747]
[1745394508855,0.001,93736.0,93735.0,0.5665711]
[1745394509862,0.21436519,93736.0,93735.0,0.35320363]
[1745394510027,0.21436519,93736.0,93735.0,0.01320363]
[1745394510401,0.21337885,93730.0,93724.0,0.01066962]
[1745394510875,0.21337885,93730.0,93729.0,0.03065035]
[1745394511509,0.21337885,93730.0,93729.0,0.02965035]
[1745394511727,0.21337885,93730.0,93729.0,0.03165035]
[1745394512152,0.20637709,93731.0,93729.0,0.03165035]
[1745394512572,0.21337885,93730.0,93729.0,0.01846066]
[1745394512964,0.21337885,93730.0,93729.0,0.03164913]
[1745394513099,0.21337885,93730.0,93729.0,0.02964913]
[1745394513328,0.21337885,93730.0,93729.0,0.03064913]
[1745394513527,0.21337885,93730.0,93729.0,0.02964913]
[1745394513729,0.26307885,93730.0,93729.0,0.01318847]
[1745394513952,0.26307885,93730.0,93729.0,0.002]
[1745394514162,0.4218819,93730.0,93729.0,0.002]
[1745394514375,0.4218819,93730.0,93729.0,0.001]
[1745394514793,0.4218819,93730.0,93729.0,0.002]
[1745394515212,0.4218819,93730.0,93729.0,0.001]
[1745394516032,0.213413,93715.0,93714.0,0.01618669]
[1745394516237,0.213413,93715.0,93714.0,0.00013981]
[1745394516445,0.211413,93715.0,93714.0,0.02911119]
[1745394516662,0.211413,93715.0,93714.0,0.01335017]
[1745394517073,0.211413,93715.0,93714.0,0.01435017]
[1745394517286,0.211413,93715.0,93714.0,0.01535017]
[1745394517495,0.36751605,93715.0,93714.0,0.01535017]
[1745394517906,0.36751605,93715.0,93714.0,0.00213981]